fUSD/lending_fUSD_20240216
["ID","MTS","AMOUNT","RATE_DAILY","PERIOD"]
[314198731,1708068648294,-500.0,0.00041095,30]
[314198732,1708068648304,-500.0,0.00041095,30]
[314198733,1708068648314,-500.0,0.00041095,30]
[314198734,1708068648323,-500.0,0.00041095,30]
[314198735,1708068648332,-500.0,0.00041095,30]
[314198736,1708068648341,-500.0,0.00041095,30]
[314198737,1708068648350,-151.0,0.00041095,7]
[314198738,1708068648359,-154.42953784,0.00041095,30]
[314198739,1708068648368,-175.819442,0.00041095,7]
[314198740,1708068648377,-500.0,0.00041095,30]
[314198741,1708068648387,-151.0,0.00041095,7]
[314198742,1708068648396,-500.0,0.00041095,30]
[314198743,1708068648406,-500.0,0.00041095,30]
[314198744,1708068648415,-444.04554622,0.00041095,30]
[314198745,1708068648436,-55.95445378,0.00041095,30]
[314198746,1708068648445,-500.0,0.00041095,2]
[314198747,1708068648454,-500.0,0.00041095,30]
[314198748,1708068648463,-156.04554622,0.00041095,30]
[314198749,1708068658929,468.77568959,0.00023,2]
[314198750,1708068674874,292.1026829,0.00023,2]
[314198752,1708068998628,155.0,0.00023,2]
[314198753,1708069018601,156.71766194,0.00023,2]
[314198769,1708069421472,500.31,0.000245,2]
[314198775,1708069581295,544.69303314,0.000245,2]
[314198776,1708069601349,302.60724063,0.000245,2]
[314198802,1708069831750,-363.5819178,0.00024988,2]
[314198803,1708069831763,-703.76345703,0.00024988,2]
[314198804,1708069831772,-296.11080297,0.00024989,2]
[314198805,1708069831783,-301.52504693,0.00024989,2]
[314198806,1708069831794,-267.80777809,0.00024989,2]
[314198807,1708069831810,-248.55637201,0.00024989,2]
[314198808,1708069831820,-27.7034644,0.00024991,2]
[314198809,1708069831836,-203.20240447,0.00024991,2]
[314198810,1708069831845,-210.31586043,0.00024995,2]
[314198811,1708069831854,-210.31586043,0.00024995,2]
[314198812,1708069831864,-1250.0,0.00025,3]
[314198813,1708069831877,-165.38026018,0.000269,2]
[314198814,1708069831887,-1300.0,0.00027,3]
[314198815,1708069831896,-1350.0,0.00029,3]
[314198816,1708069831905,-155.0,0.00029999,2]
[314198817,1708069831915,-191.60846217,0.0003,4]
[314198818,1708069831924,-675.33,0.00030622,2]
[314198819,1708069831934,-165.38026016,0.00030623,2]
[314198820,1708069831943,-206.11,0.00030623,2]
[314198821,1708069831954,-499.99,0.00030623,2]
[314198822,1708069831964,-644.28085014,0.00031,3]
[314198823,1708069831975,-634.94423035,0.00031,3]
[314198824,1708069831987,-120.77491951,0.00031,3]
[314198825,1708069831996,-150.0,0.00033758,3]
[314198826,1708069832005,-400.0,0.00033758,3]
[314198827,1708069832015,-165.38026016,0.00034345,2]
[314198828,1708069832024,-150.0,0.00034548,10]
[314198829,1708069832033,-960.35119635,0.000348,3]
[314198830,1708069832046,-1085.39102971,0.000348,3]
[314198837,1708069837643,-7555.25777394,0.000348,3]
[314198838,1708069837652,-318.39635963,0.00035189,10]
[314198839,1708069837661,-262.10038524,0.00035195,10]
[314198840,1708069837670,-299.98,0.00036064,2]
[314198841,1708069837680,-7243.897093,0.00036948,2]
[314198842,1708069837689,-210.0,0.00037134,3]
[314198843,1708069837699,-250.0,0.00037647,2]
[314198844,1708069837709,-213.68,0.00037692,2]
[314198845,1708069837718,-176.18,0.00037698,2]
[314198846,1708069837728,-2000.0,0.00037733,2]
[314198847,1708069837738,-600.0,0.00037742,2]
[314198848,1708069837748,-20598.32,0.00037773,2]
[314198849,1708069837758,-250.0,0.00037813,111]
[314198850,1708069837768,-175.06,0.00037819,2]
[314198851,1708069837777,-152.66,0.00037921,2]
[314198852,1708069837787,-165.38026016,0.00038068,2]
[314198853,1708069837797,-608.75,0.00038195,2]
[314198854,1708069837807,-628.96,0.00038265,2]
[314198855,1708069837817,-299.98,0.00038328,2]
[314198856,1708069837828,-153.64,0.00038356,2]
[314198857,1708069837838,-868.78,0.00038356,15]
[314198858,1708069837848,-1362.4632713,0.00038428,7]
[314198859,1708069837857,-1170.6922447,0.00038433,7]
[314198860,1708069837869,-285.1891459,0.00038438,7]
[314198861,1708069837880,-377.58860571,0.00038438,7]
[314198862,1708069837889,-1000.0,0.00038443,10]
[314198863,1708069837899,-319.34101852,0.00038454,7]
[314198864,1708069837909,-310.17887489,0.00038459,8]
[314198865,1708069837919,-185.79942594,0.00038459,8]
[314198866,1708069837929,-628.96,0.00038466,2]
[314198867,1708069837939,-400.0,0.00038499,2]
[314198868,1708069837949,-628.96,0.00038668,2]
[314198869,1708069837959,-150.0,0.000387,2]
[314198870,1708069837969,-628.96,0.00038869,2]
[314198871,1708069837978,-628.96,0.0003907,2]
[314198872,1708069837988,-628.96,0.00039272,2]
[314198873,1708069837997,-176.18,0.00039342,2]
[314198874,1708069838006,-172.08696083,0.00039398,20]
[314198875,1708069838015,-173.73,0.00039448,2]
[314198876,1708069838024,-628.96,0.00039473,2]
[314198877,1708069838033,-1382.38258212,0.0003948,7]
[314198879,1708069838043,-166.32,0.00039491,2]
[314198881,1708069838052,-628.96,0.00039675,2]
[314198883,1708069838062,-1000.0,0.000397,2]
[314198885,1708069838072,-206.0,0.00039793,2]
[314198887,1708069838082,-152.5,0.000398,3]
[314198889,1708069838091,-152.5,0.000398,3]
[314198891,1708069838100,-152.5,0.000398,3]
[314198893,1708069838109,-628.96,0.00039876,2]
[314198895,1708069838119,-152.66,0.00039898,2]
[314198897,1708069838128,-1598.23304418,0.0004,7]
[314198899,1708069838137,-173.01751013,0.0004,60]
[314198901,1708069838147,-2258.71139144,0.0004,8]
[314198903,1708069838157,-2258.71139144,0.0004,8]
[314198905,1708069838166,-2258.71139144,0.0004,8]
[314198907,1708069838175,-628.96,0.00040077,2]
[314198909,1708069838184,-628.96,0.00040279,2]
[314198911,1708069838193,-628.96,0.0004048,2]
[314198913,1708069838202,-152.5,0.000405,4]
[314198915,1708069838212,-152.5,0.000405,4]
[314198917,1708069838221,-152.5,0.000405,4]
[314198919,1708069838232,-352.0,0.000405,7]
[314198921,1708069838241,-1057.52988275,0.00040568,2]
[314198922,1708069838251,-299.98,0.00040592,2]
[314198923,1708069838260,-569.92621,0.0004068,5]
[314198924,1708069838270,-628.96,0.00040682,2]
[314198925,1708069838279,-150.98626039,0.000407,2]
[314198926,1708069838289,-162.19176593,0.00040795,3]
[314198927,1708069838298,-4868.92729942,0.00040795,3]
[314198928,1708069838308,-281.7472,0.00040795,2]
[314198929,1708069838318,-1975.9218,0.00040795,2]
[314198930,1708069838329,-448.8131,0.00040795,2]
[314198931,1708069838339,-9965.9088,0.00040795,2]
[314198932,1708069838348,-356.83734842,0.00040796,13]
[314198933,1708069838357,-150.0,0.00040841,2]
[314198934,1708069838540,-628.96,0.00040883,2]
[314198935,1708069838550,-175.34253129,0.00040885,16]
[314198936,1708069838559,-23079.3085536,0.00040885,11]
[314198937,1708069838568,-1538.62057024,0.0004089,11]
[314198938,1708069838579,-175.34253128,0.0004089,16]
[314198939,1708069838588,-200.40605438,0.0004089,5]
[314198940,1708069838598,-655.16596614,0.00040893,4]
[314198941,1708069838607,-186.81215504,0.00040894,120]
[314198942,1708069838616,-4519.44783645,0.00040895,15]
[314198943,1708069838626,-154.62524897,0.00040895,10]
[314198944,1708069838635,-178.0856967,0.00040895,2]
[314198945,1708069838644,-370.76595029,0.00040895,2]
[314198946,1708069838653,-175.34253128,0.00040895,16]
[314198947,1708069838662,-1000.0,0.00040895,2]
[314198948,1708069838671,-427.6409,0.00040895,2]
[314198949,1708069838681,-7376.4491,0.00040895,2]
[314198950,1708069838690,-315307.3027,0.00040895,2]
[314198951,1708069838700,-370.76595025,0.00040896,2]
[314198952,1708069838709,-370.76595025,0.00040898,2]
[314198953,1708069838719,-370.76595025,0.00040899,2]
[314198954,1708069838728,-5000.0,0.000409,3]
[314198955,1708069838737,-370.76595025,0.000409,2]
[314198956,1708069838746,-1971.71159732,0.000409,2]
[314198957,1708069838755,-555.6131531,0.000409,2]
[314198958,1708069838764,-225.74286234,0.000409,2]
[314198959,1708069838773,-1070.0058298,0.000409,2]
[314198960,1708069838783,-455.72753578,0.000409,2]
[314198961,1708069838792,-207.20602568,0.000409,2]
[314198962,1708069838802,-166.7899118,0.000409,8]
[314198963,1708069838811,-55555.0,0.000409,5]
[314198964,1708069838820,-151.021624,0.00040948,25]
[314198965,1708069838830,-1507.5048203,0.00040954,5]
[314198966,1708069838839,-1538.62057024,0.00040955,11]
[314198967,1708069838848,-338.38121287,0.0004097,2]
[314198968,1708069838858,-1538.62057024,0.0004098,11]
[314198969,1708069838870,-13847.5851322,0.0004098,11]
[314198970,1708069838879,-294430.486101,0.0004098,6]
[314198971,1708069838888,-147215.24305,0.00040985,6]
[314198972,1708069838898,-176.18,0.00040986,2]
[314198973,1708069838907,-200.0,0.00040987,26]
[314198974,1708069838916,-200.0,0.00040987,24]
[314198975,1708069838925,-200.0,0.00040987,22]
[314198976,1708069838934,-7457.72411097,0.0004099,5]
[314198977,1708069838945,-118206.90009618,0.0004099,6]
[314198978,1708069838959,-12359.91847733,0.0004099,6]
[314198979,1708069838975,-281.55,0.0004099,6]
[314198980,1708069838986,-417.121379,0.0004099,6]
[314198981,1708069838998,-89557.37462249,0.0004099,6]
[314198982,1708069839008,-338.38121287,0.0004099,2]
[314198983,1708069839017,-338.38121287,0.0004099,2]
[314198984,1708069839026,-150.16865559,0.00040995,3]
[314198985,1708069839037,-245000.0,0.00040995,2]
[314198986,1708069839047,-316.3967,0.00040995,2]
[314198987,1708069839056,-200.0,0.00040996,10]
[314198988,1708069839066,-1057.52988275,0.00040997,2]
[314198989,1708069839076,-168.83411934,0.00040999,3]
[314198990,1708069839085,-150.0,0.00040999,3]
[314198991,1708069839094,-10030.87010034,0.00041,45]
[314198992,1708069839104,-2308271.4356858,0.00041,3]
[314198993,1708069839116,-370.9210067,0.00041,3]
[314198994,1708069839128,-996.98375882,0.00041,3]
[314198997,1708069840258,-1246.12547997,0.00041,3]
[314198998,1708069840955,-849659.03207351,0.00041,3]
[314198999,1708069840965,-4605.91247539,0.00041,5]
[314199006,1708069842811,-40548.10055742,0.00041,5]
[314199007,1708069842824,-574.14556668,0.00041,5]
[314199008,1708069842835,-264.1135013,0.00041,5]
[314199015,1708069845633,-1357.49628805,0.00041,5]
[314199016,1708069845801,-408.1979072,0.00041,5]
[314199017,1708069845813,-281.28000798,0.00041,5]
[314199018,1708069845825,-704.225,0.00041,5]
[314199019,1708069845856,-4071.5,0.00041,5]
[314199036,1708069870233,2117280.3508098,0.00023,2]
[314199037,1708069943379,302.60724063,0.00023,2]
[314199038,1708069961370,157.65837237,0.00023,2]
[314199040,1708070062740,217.54308304,0.000137,2]
[314199067,1708071031792,-163.8519,0.00024867,2]
[314199068,1708071031801,-1067.34537483,0.0002496,2]
[314199069,1708071031810,-776.15633984,0.00024961,2]
[314199070,1708071031819,-161.33515489,0.0002499,2]
[314199071,1708071031828,-150.0,0.00025089,2]
[314199072,1708071031838,-150.0,0.00025089,2]
[314199073,1708071031847,-2500.0,0.0002509,2]
[314199074,1708071031856,-7955.99198215,0.0002509,2]
[314199075,1708071031865,-22731.61768205,0.00025198,10]
[314199076,1708071031875,-9686.00002161,0.000263,2]
[314199077,1708071031884,-2000.26630212,0.00026459,3]
[314199078,1708071031893,-306.1,0.0002661,2]
[314199079,1708071031902,-88611.0,0.00027443,2]
[314199080,1708071031911,-250.0,0.00027758,2]
[314199081,1708071031920,-276.2091503,0.000279,3]
[314199082,1708071031929,-499.99,0.000279,2]
[314199083,1708071031938,-555.61315311,0.000279,2]
[314199084,1708071031948,-225.58747524,0.0002799,2]
[314199085,1708071031957,-635.917789,0.00027999,2]
[314199086,1708071031966,-151667.89949498,0.00028,2]
[314199087,1708071031978,-11141.68256997,0.00028,2]
[314199088,1708071031990,-616.61648566,0.00028,2]
[314199089,1708071032003,-318.3432,0.00028,2]
[314199090,1708071032015,-21528.0,0.00028,2]
[314199091,1708071032026,-7266.00620357,0.00028,2]
[314199092,1708071032045,-861.30312776,0.00028,2]
[314199093,1708071032056,-549.35079271,0.00028,2]
[314199094,1708071032067,-301.95469334,0.00028,2]
[314199095,1708071032078,-740.58240107,0.00028,2]
[314199096,1708071032089,-500.53973003,0.00028,2]
[314199097,1708071032104,-313649.89512814,0.00028,2]
[314199098,1708071032115,-2417.29712188,0.00028,2]
[314199099,1708071032127,-315.2812933,0.00028,2]
[314199100,1708071032138,-3400.0,0.00028,2]
[314199124,1708071037766,-4270.94991751,0.00028,2]
[314199125,1708071037778,-1036.90425848,0.00028,2]
[314199126,1708071037789,-482.04719999,0.00028,2]
[314199127,1708071037829,-548.045788,0.00028,2]
[314199128,1708071037842,-27738.60000129,0.00028,2]
[314199129,1708071037853,-14507.25660003,0.00028,2]
[314199130,1708071038054,-887.767064,0.00028,2]
[314199131,1708071038066,-422.83764416,0.00028,2]
[314199132,1708071038109,-268547.54373815,0.00028,2]
[314199133,1708071038118,-363.92326584,0.00028,2]
[314199134,1708071038127,-258.12,0.00028067,2]
[314199135,1708071038137,-15311.55209949,0.000281,2]
[314199136,1708071038146,-250.0,0.00028168,2]
[314199137,1708071038155,-172.75,0.00028528,2]
[314199138,1708071038165,-164.67,0.00028561,2]
[314199139,1708071038174,-353.65,0.00028589,2]
[314199140,1708071038183,-500.0,0.00028633,2]
[314199141,1708071038193,-9361.92,0.0002874,2]
[314199142,1708071038206,-1052.99,0.00028856,2]
[314199143,1708071038216,-306.1,0.00028874,2]
[314199145,1708071038225,-2000.0,0.00028967,2]
[314199147,1708071038237,-175.06,0.00029246,2]
[314199149,1708071038252,-173.73,0.00029246,2]
[314199150,1708071038264,-167.96,0.00029914,2]
[314199151,1708071038276,-642.89189944,0.0003,2]
[314199153,1708071038288,-155.0,0.0003,4]
[314199154,1708071038299,-480.0,0.00030147,2]
[314199155,1708071038311,-152.43,0.00030214,2]
[314199156,1708071038322,-161.33515487,0.00030227,2]
[314199157,1708071038333,-353.65,0.00030233,2]
[314199158,1708071038343,-276.20915026,0.00030247,5]
[314199159,1708071038353,-333.0,0.000303,2]
[314199160,1708071038364,-250.0,0.00030308,2]
[314199161,1708071038375,-555.0,0.00031,2]
[314199162,1708071038386,-152.43,0.00031001,2]
[314199163,1708071038397,-306.1,0.00031138,2]
[314199164,1708071038408,-195.74,0.00031407,2]
[314199165,1708071038419,-167.96,0.0003141,2]
[314199166,1708071038431,-152.43,0.00031788,2]
[314199167,1708071038443,-353.65,0.00031877,2]
[314199168,1708071038454,-276.20915026,0.00032594,6]
[314199169,1708071038466,-167.96,0.00032905,2]
[314199170,1708071038477,-154.8,0.00033335,2]
[314199171,1708071038487,-306.1,0.00033402,2]
[314199172,1708071038498,-353.65,0.00033521,2]
[314199173,1708071038513,-165.33,0.00033629,2]
[314199174,1708071038525,-961.6,0.00033839,2]
[314199175,1708071038536,-480.0,0.00033916,2]
[314199176,1708071038546,-172.75,0.00034234,2]
[314199177,1708071038556,-1000.0,0.00034492,2]
[314199178,1708071038566,-154.8,0.00034514,2]
[314199179,1708071038578,-16693.96667515,0.0003479,2]
[314199180,1708071038589,-16693.96667507,0.0003479,2]
[314199181,1708071038601,-16693.96667507,0.0003479,2]
[314199182,1708071038612,-16693.96667507,0.0003479,2]
[314199183,1708071038624,-194.10057334,0.00034799,2]
[314199184,1708071038634,-194.10057329,0.00034799,2]
[314199185,1708071038645,-194.10057329,0.00034799,2]
[314199186,1708071038656,-194.10057329,0.00034799,2]
[314199187,1708071038667,-1432.12957919,0.000349,2]
[314199188,1708071038678,-1432.12957913,0.000349,2]
[314199189,1708071038689,-1432.12957913,0.000349,2]
[314199190,1708071038701,-1432.12957913,0.000349,2]
[314199191,1708071038712,-1432.12957913,0.000349,2]
[314199192,1708071038723,-276.20915026,0.00034941,7]
[314199193,1708071038733,-555.0,0.00035,2]
[314199194,1708071038742,-353.65,0.00035165,2]
[314199195,1708071038752,-235.89034671,0.00035207,10]
[314199196,1708071038762,-161.33515487,0.00035463,2]
[314199197,1708071038773,-306.1,0.00035666,2]
[314199198,1708071038785,-154.8,0.00035693,2]
[314199199,1708071038796,-1432.12957913,0.00035795,2]
[314199200,1708071038807,-154.62524897,0.000359,2]
[314199201,1708071038818,-4596.156245,0.000359,8]
[314199202,1708071038830,-155.0,0.00036,4]
[314199203,1708071038844,-666.0,0.00036,2]
[314199204,1708071038855,-194.10057329,0.00036011,2]
[314199205,1708071038867,-4596.15624493,0.00036664,9]
[314199206,1708071038878,-353.65,0.00036809,2]
[314199207,1708071038889,-154.8,0.00036871,2]
[314199208,1708071038900,-276.20915026,0.00037289,8]
[314199209,1708071038909,-1432.12957913,0.00037374,2]
[314199210,1708071038921,-4596.15624493,0.00037427,10]
[314199211,1708071038931,-520.0,0.00037487,2]
[314199212,1708071038947,-480.0,0.00037684,2]
[314199213,1708071038958,-306.1,0.0003793,2]
[314199214,1708071038969,-150.0,0.00038,2]
[314199215,1708071038980,-194.10057329,0.00038038,2]
[314199216,1708071038991,-154.8,0.0003805,2]
[314199217,1708071039003,-4596.15624493,0.00038191,11]
[314199218,1708071039015,-610.62,0.00038264,2]
[314199219,1708071039027,-796.38,0.00038356,15]
[314199220,1708071039039,-1701.84087999,0.00038458,8]
[314199221,1708071039051,-610.62,0.00038466,2]
[314199222,1708071039063,-287.4283446,0.00038473,8]
[314199223,1708071039075,-272.04928795,0.00038483,8]
[314199224,1708071039087,-615.36484963,0.00038494,8]
[314199225,1708071039100,-610.62,0.00038667,2]
[314199226,1708071039111,-333.04819184,0.00038704,11]
[314199227,1708071039121,-150.0,0.000388,2]
[314199228,1708071039131,-610.62,0.00038869,2]
[314199229,1708071039141,-242.71793406,0.00038903,12]
[314199230,1708071039151,-1432.12957913,0.00038953,2]
[314199231,1708071039162,-4596.15624493,0.00038955,12]
[314199232,1708071039172,-28614.12451033,0.00039,5]
[314199233,1708071039182,-12622.15,0.00039,2]
[314199234,1708071039193,-1508.79873285,0.00039,60]
[314199235,1708071039205,-610.62,0.0003907,2]
[314199236,1708071039217,-1000.0,0.000392,2]
[314199237,1708071039227,-154.8,0.00039229,2]
[314199238,1708071039238,-610.62,0.00039271,2]
[314199239,1708071039249,-610.62,0.00039473,2]
[314199240,1708071039259,-701.81610333,0.00039605,2]
[314199241,1708071039271,-276.20915026,0.00039636,9]
[314199242,1708071039282,-610.62,0.00039674,2]
[314199243,1708071039295,-87045.1087208,0.00039684,4]
[314199244,1708071039307,-438.09,0.00039691,10]
[314199245,1708071039318,-2821.79761459,0.00039701,2]
[314199246,1708071039328,-526.97854074,0.00039701,3]
[314199247,1708071039339,-284.56922667,0.00039701,120]
[314199248,1708071039351,-279.69007521,0.00039701,2]
[314199249,1708071039361,-155.32896675,0.00039701,2]
[314199250,1708071039372,-1919.80068077,0.00039701,120]
[314199251,1708071039382,-4667.39309302,0.00039701,2]
[314199252,1708071039393,-155.89113478,0.00039701,2]
[314199253,1708071039404,-156.47521974,0.00039701,2]
[314199254,1708071039415,-522.30728195,0.00039701,2]
[314199255,1708071039426,-11968.0537833,0.00039701,10]
[314199256,1708071039437,-1044.90916222,0.00039701,120]
[314199257,1708071039448,-563.00832416,0.00039701,2]
[314199258,1708071039459,-870.464545,0.00039701,120]
[314199259,1708071039470,-4036.84473067,0.00039701,2]
[314199260,1708071039481,-4596.15624493,0.00039718,13]
[314199261,1708071039496,-155.155284,0.00039726,14]
[314199262,1708071039506,-150.0,0.000398,41]
[314199263,1708071039517,-152.46,0.000398,3]
[314199264,1708071039528,-152.46,0.000398,3]
[314199265,1708071039538,-152.46,0.000398,3]
[314199266,1708071039549,-166.6,0.00039869,2]
[314199267,1708071039559,-610.62,0.00039876,2]
[314199268,1708071039570,-654.64906978,0.00039878,4]
[314199269,1708071039580,-27247.87326058,0.0003988,2]
[314199270,1708071039592,-87045.1087208,0.0003999,5]
[314199271,1708071039603,-1196.59847934,0.0004,8]
[314199272,1708071039613,-4882.20805108,0.0004,3]
[314199273,1708071039624,-12625.0,0.0004,2]
[314199274,1708071039634,-1000.0,0.0004,120]
[314199275,1708071039645,-160121.51251901,0.0004,3]
[314199276,1708071039658,-155.0,0.0004,2]
[314199277,1708071039669,-1000.0,0.0004,120]
[314199278,1708071039679,-354.32,0.0004,2]
[314199279,1708071039689,-300.0,0.0004,2]
[314199280,1708071039700,-150.0,0.0004,2]
[314199281,1708071039710,-150.0,0.00040011,2]
[314199282,1708071039721,-1500.0,0.00040049,2]
[314199283,1708071039731,-194.10057329,0.00040066,2]
[314199284,1708071039741,-610.62,0.00040077,2]
[314199285,1708071039751,-1500.0,0.00040153,2]
[314199286,1708071039762,-306.1,0.00040194,2]
[314199287,1708071039772,-150.0,0.00040231,2]
[314199288,1708071039782,-242.71793406,0.0004024,14]
[314199289,1708071039792,-610.62,0.00040278,2]
[314199290,1708071039802,-210.5475,0.00040386,2]
[314199291,1708071039813,-154.8,0.00040408,2]
[314199292,1708071039823,-150.0,0.00040433,7]
[314199293,1708071039833,-150.0,0.00040442,2]
[314199294,1708071039843,-150.0,0.00040452,2]
[314199295,1708071039853,-610.62,0.0004048,2]
[314199296,1708071039863,-4596.15624493,0.00040482,14]
[314199297,1708071039873,-152.46,0.000405,4]
[314199298,1708071039883,-152.46,0.000405,4]
[314199299,1708071039894,-152.46,0.000405,4]
[314199300,1708071039904,-1432.12957913,0.00040532,5]
[314199301,1708071039914,-155.155284,0.00040548,14]
[314199302,1708071039924,-1388.3293827,0.00040557,2]
[314199303,1708071039934,-150.0,0.0004057,7]
[314199304,1708071039944,-5520.72698237,0.00040597,5]
[314199305,1708071039954,-1245.02714321,0.00040674,2]
[314199306,1708071039964,-610.62,0.00040681,2]
[314199307,1708071039974,-154.30988301,0.00040684,2]
[314199308,1708071039984,-150.0,0.00040684,2]
[314199309,1708071039995,-150.0,0.00040684,2]
[314199310,1708071040005,-150.0,0.00040684,2]
[314199311,1708071040016,-150.0,0.00040684,2]
[314199312,1708071040026,-250.01482,0.00040684,2]
[314199313,1708071040036,-418.6854,0.00040695,2]
[314199314,1708071040046,-161.33515487,0.000407,2]
[314199315,1708071040056,-150.49524156,0.000407,2]
[314199316,1708071040066,-150.0,0.00040707,7]
[314199317,1708071040075,-87045.1087208,0.00040765,6]
[314199319,1708071040272,-800.0,0.00040766,15]
[314199320,1708071040283,-200.0,0.00040766,20]
[314199321,1708071040292,-200.0,0.00040772,10]
[314199323,1708071040302,-225.58747524,0.0004078,2]
[314199324,1708071040311,-87045.1087208,0.00040785,6]
[314199325,1708071040320,-87045.1087208,0.0004079,6]
[314199326,1708071040330,-713.33721986,0.0004079,2]
[314199327,1708071040339,-8304.57735861,0.0004079,2]
[314199328,1708071040349,-1503.00411376,0.0004079,2]
[314199329,1708071040358,-1314.4743982,0.0004079,2]
[314199330,1708071040368,-303.8183572,0.0004079,2]
[314199331,1708071040377,-224186.6707,0.00040795,2]
[314199332,1708071040386,-912.447,0.000408,2]
[314199333,1708071040395,-4225.1412,0.000408,2]
[314199334,1708071040405,-5000.0,0.000408,3]
[314199335,1708071040414,-200.0,0.00040824,15]
[314199336,1708071040424,-153.0,0.0004084,7]
[314199337,1708071040433,-150.0,0.00040844,7]
[314199338,1708071040442,-206.0,0.00040845,10]
[314199339,1708071040451,-151.021624,0.00040848,25]
[314199340,1708071040461,-180.36270987,0.00040855,30]
[314199341,1708071040470,-610.62,0.00040883,2]
[314199342,1708071040480,-87045.1087208,0.0004089,6]
[314199343,1708071040489,-151.0,0.0004089,7]
[314199344,1708071040498,-500.0,0.000409,7]
[314199345,1708071040508,-500.0,0.000409,7]
[314199346,1708071040517,-500.0,0.000409,7]
[314199347,1708071040526,-500.0,0.000409,7]
[314199348,1708071040535,-500.0,0.000409,7]
[314199349,1708071040545,-500.0,0.000409,7]
[314199350,1708071040554,-500.0,0.000409,7]
[314199351,1708071040563,-500.0,0.000409,7]
[314199352,1708071040572,-254.88,0.000409,7]
[314199353,1708071040582,-500.0,0.000409,7]
[314199354,1708071040591,-500.0,0.000409,7]
[314199355,1708071040600,-500.0,0.000409,7]
[314199356,1708071040609,-500.0,0.000409,7]
[314199357,1708071040618,-500.0,0.000409,7]
[314199358,1708071040627,-500.0,0.000409,7]
[314199359,1708071040636,-500.0,0.000409,7]
[314199360,1708071040645,-565.24,0.000409,7]
[314199361,1708071040654,-296.6922,0.000409,2]
[314199362,1708071040663,-87537.7903,0.000409,2]
[314199363,1708071040672,-151.0,0.000409,7]
[314199364,1708071040682,-800.0,0.00040902,15]
[314199365,1708071040691,-200.0,0.00040902,20]
[314199366,1708071040700,-500.0,0.00040902,20]
[314199367,1708071040709,-421.095,0.00040934,7]
[314199368,1708071040718,-151.021624,0.00040948,25]
[314199369,1708071040727,-951.90907,0.00040956,2]
[314199370,1708071040736,-186.944945,0.00040956,2]
[314199371,1708071040745,-152.59450357,0.00040958,30]
[314199372,1708071040754,-225.0,0.00040973,30]
[314199373,1708071040763,-153.0,0.00040977,7]
[314199374,1708071040772,-87045.1087208,0.0004098,6]
[314199375,1708071040781,-1000.0,0.00040981,10]
[314199376,1708071040789,-150.0,0.00040981,7]
[314199377,1708071040798,-5000.0,0.00040989,14]
[314199378,1708071040807,-1013.21389927,0.00040989,14]
[314199379,1708071040816,-151.0,0.0004099,7]
[314199380,1708071040826,-151.0,0.0004099,7]
[314199381,1708071040836,-151.0,0.0004099,7]
[314199382,1708071040846,-25421.5051,0.00040995,5]
[314199383,1708071040855,-1974.93851,0.00040997,7]
[314199384,1708071040864,-200000.0,0.00041,5]
[314199385,1708071040873,-2000.0,0.00041,7]
[314199386,1708071040882,-200.0,0.00041,7]
[314199387,1708071040891,-6000.88497933,0.00041,120]
[314199388,1708071040900,-274902.84,0.00041,15]
[314199389,1708071040909,-151.0,0.00041,7]
[314199390,1708071040918,-151.0,0.00041,7]